fUSD/lending_fUSD_20240720
["ID","MTS","AMOUNT","RATE_DAILY","PERIOD"]
[332717677,1721473917931,-500.0,0.00034246,14]
[332717678,1721473917940,-500.0,0.00034246,14]
[332717679,1721473917949,-500.0,0.00034246,14]
[332717680,1721473917958,-230.65371297,0.00034246,14]
[332717681,1721473917968,-506.09,0.00034246,14]
[332717682,1721473917978,-692.91,0.00034246,14]
[332717683,1721473917987,-660.88,0.00034246,14]
[332717684,1721473917996,-510.57115438,0.00034246,14]
[332717685,1721473918005,-626.34,0.00034246,14]
[332717686,1721473918015,-562.29,0.00034246,14]
[332717687,1721473918025,-500.0,0.00034246,14]
[332717688,1721473918041,-500.0,0.00034246,14]
[332717689,1721473918052,-500.0,0.00034246,14]
[332717690,1721473918063,-500.0,0.00034246,14]
[332717691,1721473918073,-500.0,0.00034246,14]
[332717692,1721473918082,-500.0,0.00034246,14]
[332717693,1721473918092,-500.0,0.00034246,14]
[332717694,1721473918101,-500.0,0.00034246,14]
[332717695,1721473918110,-649.1,0.00034246,14]
[332717696,1721473918119,-525.64,0.00034246,14]
[332717697,1721473918130,-500.0,0.00034246,14]
[332717698,1721473918141,-483.39531236,0.00034246,14]
[332717699,1721473918150,-500.0,0.00034246,14]
[332717700,1721473918159,-641.30215381,0.00034246,14]
[332717701,1721473918169,-549.87,0.00034246,14]
[332717702,1721473918179,-500.0,0.00034246,14]
[332717703,1721473918188,-500.0,0.00034246,14]
[332717704,1721473918197,-500.0,0.00034246,14]
[332717705,1721473918207,-500.0,0.00034246,14]
[332717706,1721473918216,-500.0,0.00034246,14]
[332717707,1721473918225,-500.0,0.00034246,14]
[332717708,1721473918234,-763.4,0.00034246,14]
[332717709,1721473918243,-500.0,0.00034246,14]
[332717710,1721473918252,-500.0,0.00034246,14]
[332717711,1721473918261,-500.0,0.00034246,14]
[332717712,1721473918271,-500.0,0.00034246,14]
[332717713,1721473918280,-500.0,0.00034246,14]
[332717714,1721473918289,-500.0,0.00034246,14]
[332717715,1721473918299,-500.0,0.00034246,14]
[332717716,1721473918308,-500.0,0.00034246,14]
[332717717,1721473918317,-1119.59,0.00034246,14]
[332717718,1721473918328,-500.0,0.00034246,14]
[332717719,1721473918338,-500.0,0.00034246,14]
[332717720,1721473918347,-500.0,0.00034246,14]
[332717721,1721473918356,-500.0,0.00034246,14]
[332717722,1721473918365,-500.0,0.00034246,14]
[332717723,1721473918375,-545.99,0.00034246,14]
[332717724,1721473918383,-500.0,0.00034246,14]
[332717725,1721473918393,-500.0,0.00034246,14]
[332717726,1721473918402,-649.25,0.00034246,14]
[332717727,1721473918411,-500.0,0.00034246,14]
[332717728,1721473918421,-500.0,0.00034246,14]
[332717729,1721473918430,-500.0,0.00034246,14]
[332717730,1721473918439,-579.95200163,0.00034246,14]
[332717731,1721473918448,-500.0,0.00034246,14]
[332717732,1721473918457,-500.0,0.00034246,14]
[332717733,1721473918466,-500.0,0.00034246,14]
[332717734,1721473918476,-500.0,0.00034246,14]
[332717735,1721473918485,-500.0,0.00034246,14]
[332717736,1721473918495,-500.0,0.00034246,14]
[332717737,1721473918504,-500.0,0.00034246,14]
[332717738,1721473918513,-1601.88,0.00034246,14]
[332717739,1721473918523,-500.0,0.00034246,14]
[332717740,1721473918532,-500.0,0.00034246,14]
[332717741,1721473918542,-500.0,0.00034246,14]
[332717742,1721473918551,-500.0,0.00034246,14]
[332717743,1721473918560,-500.0,0.00034246,14]
[332717744,1721473918569,-500.0,0.00034246,14]
[332717745,1721473918578,-500.0,0.00034246,14]
[332717746,1721473918588,-500.0,0.00034246,14]
[332717747,1721473918598,-500.0,0.00034246,14]
[332717748,1721473918607,-500.0,0.00034246,14]
[332717749,1721473918616,-500.0,0.00034246,14]
[332717750,1721473918625,-526.06,0.00034246,14]
[332717751,1721473918635,-500.0,0.00034246,14]
[332717752,1721473918645,-500.0,0.00034246,14]
[332717753,1721473918654,-558.4,0.00034246,14]
[332717754,1721473918664,-500.0,0.00034246,14]
[332717755,1721473918673,-500.0,0.00034246,14]
[332717756,1721473918682,-500.0,0.00034246,14]
[332717757,1721473918692,-500.0,0.00034246,14]
[332717758,1721473918701,-500.0,0.00034246,14]
[332717759,1721473918711,-500.0,0.00034246,14]
[332717760,1721473918720,-500.0,0.00034246,14]
[332717761,1721473918730,-500.0,0.00034246,14]
[332717762,1721473918739,-500.0,0.00034246,14]
[332717763,1721473918749,-500.0,0.00034246,14]
[332717764,1721473918758,-658.83,0.00034246,14]
[332717765,1721473918769,-500.0,0.00034246,14]
[332717766,1721473918778,-500.0,0.00034246,14]
[332717767,1721473918790,-500.0,0.00034246,14]
[332717768,1721473918799,-500.0,0.00034246,2]
[332717769,1721473918808,-500.0,0.00034246,14]
[332717770,1721473918817,-500.0,0.00034246,14]
[332717771,1721473918826,-500.0,0.00034246,14]
[332717772,1721473918835,-500.14,0.00034246,14]
[332717773,1721473918845,-2195.07,0.00034246,14]
[332717774,1721473918854,-500.0,0.00034246,14]
[332717775,1721473918864,-553.59,0.00034246,14]
[332717776,1721473918873,-500.0,0.00034246,14]
[332717777,1721473918882,-500.0,0.00034246,14]
[332717778,1721473918892,-500.0,0.00034246,14]
[332717779,1721473918901,-500.0,0.00034246,14]
[332717780,1721473918910,-972.4,0.00034246,14]
[332717781,1721473918920,-500.0,0.00034246,14]
[332717782,1721473918929,-500.0,0.00034246,14]
[332717783,1721473918939,-1241.69,0.00034246,14]
[332717784,1721473918949,-782.5,0.00034246,14]
[332717785,1721473918960,-819.47,0.00034246,14]
[332717786,1721473918971,-500.0,0.00034246,14]
[332717787,1721473918980,-500.0,0.00034246,14]
[332717788,1721473918990,-500.0,0.00034246,14]
[332717789,1721473919000,-500.0,0.00034246,14]
[332717790,1721473919009,-1002.9,0.00034246,14]
[332717791,1721473919018,-776.99,0.00034246,14]
[332717792,1721473919028,-500.0,0.00034246,14]
[332717793,1721473919037,-748.98,0.00034246,14]
[332717794,1721473919046,-175.51,0.00034246,14]
[332717795,1721473919056,-526.05,0.00034246,14]
[332717796,1721473919065,-500.0,0.00034246,14]
[332717797,1721473919075,-500.0,0.00034246,14]
[332717798,1721473919084,-500.0,0.00034246,14]
[332717799,1721473919094,-690.54,0.00034246,14]
[332717800,1721473919103,-521.32,0.00034246,14]
[332717801,1721473919112,-500.0,0.00034246,14]
[332717802,1721473919121,-500.0,0.00034246,14]
[332717803,1721473919130,-500.0,0.00034246,14]
[332717804,1721473919140,-500.0,0.00034246,14]
[332717805,1721473919149,-721.82,0.00034246,14]
[332717806,1721473919158,-500.0,0.00034246,14]
[332717807,1721473919169,-617.26682516,0.00034246,14]
[332717808,1721473919178,-500.0,0.00034246,14]
[332717809,1721473919188,-584.5,0.00034246,14]
[332717810,1721473919200,-500.0,0.00034246,14]
[332717811,1721473919210,-500.0,0.00034246,14]
[332717812,1721473919219,-500.0,0.00034246,14]
[332717813,1721473919229,-1091.35,0.00034246,14]
[332717814,1721473919238,-759.12,0.00034246,14]
[332717815,1721473919247,-500.0,0.00034246,14]
[332717816,1721473919257,-500.0,0.00034246,14]
[332717817,1721473919266,-738.7,0.00034246,14]
[332717818,1721473919275,-500.0,0.00034246,14]
[332717819,1721473919284,-1236.72,0.00034246,14]
[332717820,1721473919293,-500.0,0.00034246,14]
[332717821,1721473919302,-1632.34,0.00034246,14]
[332717822,1721473919311,-500.0,0.00034246,14]
[332717823,1721473919320,-500.0,0.00034246,14]
[332717824,1721473919330,-500.0,0.00034246,14]
[332717825,1721473919339,-500.0,0.00034246,14]
[332717826,1721473919349,-500.0,0.00034246,14]
[332717827,1721473919359,-500.0,0.00034246,14]
[332717828,1721473919370,-1335.93,0.00034246,14]
[332717829,1721473919379,-500.0,0.00034246,14]
[332717830,1721473919389,-500.0,0.00034246,14]
[332717831,1721473919398,-857.36,0.00034246,14]
[332717832,1721473919408,-500.0,0.00034246,14]
[332717833,1721473919422,-500.0,0.00034246,14]
[332717834,1721473919431,-500.0,0.00034246,14]
[332717835,1721473919442,-500.0,0.00034246,14]
[332717836,1721473919452,-2213.83,0.00034246,14]
[332717837,1721473919461,-500.0,0.00034246,14]
[332717838,1721473919470,-500.0,0.00034246,14]
[332717839,1721473919480,-499.17297707,0.00034246,14]
[332717840,1721473919490,-988.37,0.00034246,14]
[332717841,1721473919499,-500.0,0.00034246,14]
[332717842,1721473919509,-500.0,0.00034246,14]
[332717843,1721473919519,-500.0,0.00034246,14]
[332717844,1721473919529,-500.0,0.00034246,14]
[332717845,1721473919539,-500.0,0.00034246,14]
[332717846,1721473919549,-1435.63,0.00034246,14]
[332717847,1721473919560,-1384.5,0.00034246,14]
[332717848,1721473919571,-500.0,0.00034246,14]
[332717849,1721473919580,-500.0,0.00034246,14]
[332717850,1721473919589,-357.97735909,0.00034246,14]
[332717851,1721473919599,-629.23,0.00034246,14]
[332717852,1721473919608,-500.0,0.00034246,14]
[332717853,1721473919618,-502.82,0.00034246,14]
[332717854,1721473919627,-883.99,0.00034246,14]
[332717855,1721473919637,-1123.37,0.00034246,14]
[332717856,1721473919646,-500.0,0.00034246,14]
[332717857,1721473919656,-500.0,0.00034246,14]
[332717858,1721473919667,-500.0,0.00034246,14]
[332717859,1721473919676,-500.0,0.00034246,14]
[332717860,1721473919686,-1157.36,0.00034246,14]
[332717861,1721473919695,-500.0,0.00034246,14]
[332717862,1721473919705,-500.0,0.00034246,14]
[332717863,1721473919714,-528.33,0.00034246,14]
[332717864,1721473919724,-500.0,0.00034246,14]
[332717865,1721473919733,-500.0,0.00034246,14]
[332717866,1721473919742,-500.0,0.00034246,14]
[332717867,1721473919752,-500.0,0.00034246,14]
[332717868,1721473919762,-500.0,0.00034246,14]
[332717869,1721473919771,-500.0,0.00034246,14]
[332717870,1721473919785,-1278.32,0.00034246,14]
[332717871,1721473919795,-500.0,0.00034246,14]
[332717872,1721473919805,-500.0,0.00034246,14]
[332717873,1721473919815,-1279.27,0.00034246,14]
[332717874,1721473919824,-1348.27,0.00034246,14]
[332717875,1721473919834,-500.0,0.00034246,14]
[332717876,1721473919843,-500.0,0.00034246,14]
[332717877,1721473919852,-500.0,0.00034246,14]
[332717878,1721473919862,-524.67877836,0.00034246,14]
[332717879,1721473919871,-500.0,0.00034246,14]
[332717880,1721473919881,-573.23,0.00034246,14]
[332717881,1721473919892,-684.48,0.00034246,14]
[332717882,1721473919902,-887.08,0.00034246,14]
[332717883,1721473919912,-500.0,0.00034246,14]
[332717884,1721473919922,-500.0,0.00034246,14]
[332717885,1721473919932,-500.0,0.00034246,14]
[332717886,1721473919942,-500.0,0.00034246,14]
[332717887,1721473919953,-500.0,0.00034246,14]
[332717888,1721473919963,-500.0,0.00034246,14]
[332717889,1721473919974,-500.0,0.00034246,14]
[332717890,1721473919984,-500.0,0.00034246,14]
[332717891,1721473919996,-570.84,0.00034246,14]
[332717892,1721473920006,-500.0,0.00034246,14]
[332717893,1721473920015,-500.0,0.00034246,14]
[332717894,1721473920025,-1048.81,0.00034246,14]
[332717895,1721473920035,-500.0,0.00034246,14]
[332717896,1721473920046,-1318.81,0.00034246,14]
[332717897,1721473920057,-704.95,0.00034246,14]
[332717898,1721473920068,-746.38,0.00034246,14]
[332717899,1721473920078,-1196.24,0.00034246,14]
[332717900,1721473920088,-500.0,0.00034246,14]
[332717901,1721473920098,-500.0,0.00034246,14]
[332717902,1721473920108,-500.0,0.00034246,14]
[332717903,1721473920118,-500.0,0.00034246,14]
[332717904,1721473920127,-500.0,0.00034246,14]
[332717905,1721473920137,-500.0,0.00034246,14]
[332717906,1721473920146,-500.0,0.00034246,14]
[332717907,1721473920157,-500.0,0.00034246,14]
[332717908,1721473920167,-728.0,0.00034246,14]
[332717909,1721473920177,-500.0,0.00034246,14]
[332717910,1721473920187,-500.0,0.00034246,14]
[332717911,1721473920198,-500.0,0.00034246,14]
[332717912,1721473920208,-500.0,0.00034246,14]
[332717913,1721473920218,-512.93,0.00034246,14]
[332717914,1721473920228,-680.74,0.00034246,14]
[332717915,1721473920238,-712.41,0.00034246,14]
[332717916,1721473920248,-500.0,0.00034246,14]
[332717917,1721473920258,-500.0,0.00034246,14]
[332717918,1721473920267,-500.0,0.00034246,14]
[332717919,1721473920277,-500.0,0.00034246,14]
[332717920,1721473920287,-500.0,0.00034246,14]
[332717921,1721473920296,-1566.46,0.00034246,14]
[332717922,1721473920307,-500.0,0.00034246,14]
[332717923,1721473920317,-500.0,0.00034246,14]
[332717924,1721473920327,-689.74,0.00034246,14]
[332717925,1721473920336,-856.87,0.00034246,14]
[332717926,1721473920346,-500.0,0.00034246,14]
[332717927,1721473920355,-912.41,0.00034246,14]
[332717928,1721473920365,-539.45,0.00034246,14]
[332717929,1721473920375,-500.0,0.00034246,14]
[332717930,1721473920385,-1222.76,0.00034246,14]
[332717931,1721473920394,-500.0,0.00034246,14]
[332717932,1721473920404,-907.05,0.00034246,14]
[332717933,1721473920413,-500.0,0.00034246,14]
[332717934,1721473920424,-500.0,0.00034246,14]
[332717935,1721473920433,-662.46,0.00034246,14]
[332717936,1721473920444,-500.0,0.00034246,14]
[332717937,1721473920454,-500.0,0.00034246,14]
[332717938,1721473920464,-500.0,0.00034246,14]
[332717939,1721473920474,-500.0,0.00034246,14]
[332717940,1721473920661,-500.0,0.00034246,14]
[332717941,1721473920673,-500.0,0.00034246,14]
[332717942,1721473920683,-500.0,0.00034246,14]
[332717943,1721473920693,-500.0,0.00034246,14]
[332717944,1721473920702,-500.0,0.00034246,14]
[332717945,1721473920711,-930.3,0.00034246,14]
[332717946,1721473920721,-500.0,0.00034246,14]
[332717947,1721473920730,-500.0,0.00034246,14]
[332717948,1721473920741,-500.0,0.00034246,14]
[332717949,1721473920750,-500.0,0.00034246,14]
[332717950,1721473920761,-500.0,0.00034246,14]
[332717951,1721473920770,-500.0,0.00034246,14]
[332717952,1721473920780,-500.0,0.00034246,14]
[332717953,1721473920791,-500.0,0.00034246,14]
[332717954,1721473920800,-500.0,0.00034246,14]
[332717955,1721473920810,-500.0,0.00034246,14]
[332717956,1721473920819,-159.06204326,0.00034246,14]
[332717957,1721473920829,-500.0,0.00034246,14]
[332717958,1721473920840,-1204.26,0.00034246,14]
[332717959,1721473920849,-500.0,0.00034246,14]
[332717960,1721473920860,-500.0,0.00034246,14]
[332717961,1721473920869,-500.0,0.00034246,14]
[332717962,1721473920878,-500.0,0.00034246,14]
[332717963,1721473920888,-500.0,0.00034246,14]
[332717964,1721473920897,-652.64,0.00034246,14]
[332717965,1721473920906,-725.14,0.00034246,14]
[332717966,1721473920917,-1257.23,0.00034246,14]
[332717967,1721473920927,-559.46,0.00034246,14]
[332717968,1721473920939,-520.88,0.00034246,14]
[332717969,1721473920949,-1075.65,0.00034246,14]
[332717970,1721473920961,-500.0,0.00034246,14]
[332717971,1721473920972,-969.99,0.00034246,14]
[332717972,1721473920981,-346.89701193,0.00034246,14]
[332717973,1721473920990,-649.14892536,0.00034246,14]
[332717974,1721473921000,-500.0,0.00034246,14]
[332717975,1721473921010,-856.07,0.00034246,14]
[332717976,1721473921019,-500.0,0.00034246,14]
[332717977,1721473921029,-1295.85,0.00034246,14]
[332717978,1721473921038,-500.0,0.00034246,14]
[332717979,1721473921047,-585.03,0.00034246,14]
[332717980,1721473921057,-1002.09,0.00034246,14]
[332717981,1721473921066,-500.0,0.00034246,14]
[332717982,1721473921075,-500.0,0.00034246,14]
[332717983,1721473921085,-3024.54,0.00034246,14]
[332717984,1721473921094,-1239.04,0.00034246,14]
[332717985,1721473921103,-500.0,0.00034246,14]
[332717986,1721473921113,-500.0,0.00034246,14]
[332717987,1721473921123,-2000.0,0.00034246,14]
[332717988,1721473921132,-1094.07,0.00034246,14]
[332717989,1721473921141,-500.0,0.00034246,14]
[332717990,1721473921151,-819.64,0.00034246,14]
[332717991,1721473921160,-573.72,0.00034246,14]
[332717992,1721473921170,-1000.0,0.00034246,14]
[332717993,1721473921179,-579.78448188,0.00034246,14]
[332717994,1721473921188,-500.0,0.00034246,14]
[332717995,1721473921198,-1422.16,0.00034246,14]
[332717996,1721473921207,-500.0,0.00034246,14]
[332717997,1721473921216,-1143.68,0.00034246,14]
[332717998,1721473921226,-1073.0,0.00034246,14]
[332717999,1721473921235,-1114.48,0.00034246,14]
[332718000,1721473921244,-1114.51,0.00034246,14]
[332718001,1721473921254,-1019.09,0.00034246,14]
[332718002,1721473921263,-1124.4,0.00034246,14]
[332718003,1721473921272,-500.0,0.00034246,14]
[332718004,1721473921281,-500.0,0.00034246,14]
[332718005,1721473921291,-500.0,0.00034246,14]
[332718006,1721473921300,-500.0,0.00034246,14]
[332718007,1721473921312,-1042.66,0.00034246,14]
[332718008,1721473921321,-500.0,0.00034246,14]
[332718009,1721473921331,-1109.04,0.00034246,14]
[332718010,1721473921340,-500.0,0.00034246,14]
[332718011,1721473921349,-500.0,0.00034246,14]
[332718012,1721473921359,-1114.06,0.00034246,14]
[332718013,1721473921368,-500.0,0.00034246,14]
[332718014,1721473921379,-500.0,0.00034246,14]
[332718015,1721473921388,-594.09,0.00034246,14]
[332718016,1721473921398,-520.16,0.00034246,14]
[332718017,1721473921407,-1211.15,0.00034246,14]
[332718018,1721473921417,-500.0,0.00034246,14]
[332718019,1721473921427,-500.0,0.00034246,14]
[332718020,1721473921436,-500.0,0.00034246,14]
[332718021,1721473921447,-500.0,0.00034246,14]
[332718022,1721473921457,-500.0,0.00034246,14]
[332718023,1721473921467,-500.0,0.00034246,14]
[332718024,1721473921478,-500.0,0.00034246,14]
[332718025,1721473921487,-500.0,0.00034246,14]
[332718026,1721473921496,-643.38,0.00034246,14]
[332718027,1721473921506,-1101.45,0.00034246,14]
[332718028,1721473921515,-626.45,0.00034246,14]
[332718029,1721473921525,-500.0,0.00034246,14]
[332718030,1721473921535,-1299.14,0.00034246,14]
[332718031,1721473921544,-500.0,0.00034246,14]
[332718032,1721473921554,-500.0,0.00034246,14]
[332718033,1721473921563,-500.0,0.00034246,14]
[332718034,1721473921573,-500.0,0.00034246,14]
[332718035,1721473921582,-524.77,0.00034246,14]
[332718036,1721473921591,-554.72,0.00034246,14]
[332718037,1721473921600,-939.51,0.00034246,14]
[332718038,1721473921610,-2026.13,0.00034246,14]
[332718039,1721473921620,-546.06,0.00034246,14]
[332718040,1721473921629,-880.55,0.00034246,14]
[332718041,1721473921639,-580.73,0.00034246,14]
[332718042,1721473921648,-1165.94,0.00034246,14]
[332718043,1721473921658,-500.0,0.00034246,14]
[332718044,1721473921667,-885.11,0.00034246,14]
[332718045,1721473921676,-510.41,0.00034246,14]
[332718046,1721473921688,-500.0,0.00034246,14]
[332718047,1721473921698,-1002.1,0.00034246,14]
[332718048,1721473921707,-1945.47,0.00034246,2]
[332718049,1721473921717,-500.0,0.00034246,14]
[332718050,1721473921726,-710.86,0.00034246,14]
[332718051,1721473921736,-500.0,0.00034246,14]
[332718052,1721473921746,-893.65,0.00034246,14]
[332718053,1721473921755,-478.70607371,0.00034246,14]
[332718054,1721473921765,-500.0,0.00034246,14]
[332718055,1721473921774,-611.35,0.00034246,14]
[332718056,1721473921783,-1268.84,0.00034246,14]
[332718057,1721473921792,-500.0,0.00034246,14]
[332718058,1721473921802,-500.0,0.00034246,14]
[332718059,1721473921812,-797.86,0.00034246,14]
[332718060,1721473921821,-500.0,0.00034246,14]
[332718061,1721473921831,-500.0,0.00034246,14]
[332718062,1721473921840,-689.07,0.00034246,14]
[332718063,1721473921850,-1114.69,0.00034246,14]
[332718064,1721473921859,-678.8,0.00034246,14]
[332718065,1721473921869,-500.0,0.00034246,14]
[332718066,1721473921878,-500.0,0.00034246,14]
[332718067,1721473921889,-1166.55,0.00034246,14]
[332718068,1721473921898,-1280.72,0.00034246,14]
[332718069,1721473921907,-500.0,0.00034246,14]
[332718070,1721473921918,-576.28,0.00034246,14]
[332718071,1721473921929,-500.0,0.00034246,14]
[332718072,1721473921945,-500.0,0.00034246,14]
[332718073,1721473921965,-625.0,0.00034246,14]
[332718074,1721473921981,-870.6,0.00034246,14]
[332718075,1721473922000,-1000.0,0.00034246,14]
[332718076,1721473922020,-500.0,0.00034246,14]
[332718077,1721473922038,-1483.13,0.00034246,14]
[332718078,1721473922058,-1651.69,0.00034246,14]
[332718079,1721473922072,-500.0,0.00034246,14]
[332718080,1721473922089,-522.51,0.00034246,14]
[332718081,1721473922110,-515.23,0.00034246,14]
[332718082,1721473922125,-500.0,0.00034246,14]
[332718083,1721473922140,-500.0,0.00034246,14]
[332718084,1721473922156,-500.0,0.00034246,14]
[332718085,1721473922174,-500.0,0.00034246,14]
[332718086,1721473922191,-500.0,0.00034246,14]
[332718087,1721473922206,-1148.55,0.00034246,14]
[332718088,1721473922222,-1457.04,0.00034246,14]
[332718089,1721473922237,-712.63,0.00034246,14]
[332718090,1721473922252,-1645.43,0.00034246,14]
[332718091,1721473922285,-673.81,0.00034246,14]
[332718092,1721473922306,-500.0,0.00034246,14]
[332718093,1721473922327,-500.0,0.00034246,14]
[332718094,1721473922349,-1082.56,0.00034246,14]
[332718095,1721473922369,-533.63,0.00034246,14]
[332718096,1721473922387,-500.0,0.00034246,14]
[332718097,1721473922407,-500.0,0.00034246,14]
[332718098,1721473922427,-500.0,0.00034246,14]
[332718099,1721473922443,-1008.36,0.00034246,14]
[332718100,1721473922460,-1547.65,0.00034246,14]
[332718101,1721473922477,-500.0,0.00034246,14]
[332718102,1721473922493,-500.0,0.00034246,14]
[332718103,1721473922510,-500.0,0.00034246,14]
[332718104,1721473922527,-872.26,0.00034246,14]
[332718105,1721473922544,-500.0,0.00034246,14]
[332718106,1721473922560,-500.0,0.00034246,14]
[332718107,1721473922576,-500.0,0.00034246,14]
[332718108,1721473922592,-500.0,0.00034246,14]
[332718109,1721473922608,-500.0,0.00034246,14]
[332718110,1721473922624,-500.0,0.00034246,14]
[332718111,1721473922639,-842.53,0.00034246,14]
[332718112,1721473922654,-2046.57,0.00034246,14]
[332718113,1721473922670,-500.0,0.00034246,14]
[332718114,1721473922686,-500.0,0.00034246,14]
[332718115,1721473922701,-151.0,0.00034246,7]
[332718116,1721473922717,-580.79,0.00034246,14]
[332718117,1721473922734,-992.0,0.00034246,14]
[332718118,1721473922749,-736.27,0.00034246,14]
[332718119,1721473922766,-1419.39,0.00034246,14]
[332718120,1721473922782,-500.0,0.00034246,14]
[332718121,1721473922798,-500.0,0.00034246,14]
[332718122,1721473922814,-500.0,0.00034246,14]
[332718123,1721473922829,-1178.78,0.00034246,14]
[332718124,1721473922844,-838.03,0.00034246,14]
[332718125,1721473922859,-1192.93,0.00034246,14]
[332718126,1721473922875,-823.1,0.00034246,14]
[332718127,1721473922891,-500.0,0.00034246,14]
[332718128,1721473922907,-500.0,0.00034246,14]
[332718129,1721473922924,-640.96,0.00034246,14]
[332718130,1721473922940,-500.0,0.00034246,14]
[332718131,1721473922955,-689.8,0.00034246,14]
[332718132,1721473922971,-520.83,0.00034246,14]
[332718133,1721473922988,-500.0,0.00034246,14]
[332718134,1721473923005,-2025.09,0.00034246,14]
[332718135,1721473923020,-500.0,0.00034246,14]
[332718136,1721473923035,-991.34,0.00034246,14]
[332718137,1721473923049,-500.0,0.00034246,14]
[332718138,1721473923064,-587.95,0.00034246,14]
[332718139,1721473923079,-552.68121613,0.00034246,14]
[332718140,1721473923093,-650.56,0.00034246,14]
[332718141,1721473923109,-2486.61,0.00034246,14]
[332718142,1721473923124,-705.7,0.00034246,14]
[332718143,1721473923140,-639.9,0.00034246,14]
[332718144,1721473923155,-500.0,0.00034246,14]
[332718145,1721473923172,-1000.0,0.00034246,14]
[332718146,1721473923187,-874.2,0.00034246,14]
[332718147,1721473923201,-500.0,0.00034246,14]
[332718148,1721473923216,-339.60572019,0.00034246,14]
[332718149,1721473923231,-500.0,0.00034246,14]
[332718150,1721473923247,-1205.99,0.00034246,14]
[332718151,1721473923262,-500.0,0.00034246,14]
[332718152,1721473923277,-500.0,0.00034246,14]
[332718153,1721473923293,-500.0,0.00034246,14]
[332718154,1721473923308,-500.0,0.00034246,14]
[332718155,1721473923323,-500.0,0.00034246,14]
[332718156,1721473923338,-1623.55,0.00034246,14]
[332718157,1721473923353,-834.67,0.00034246,14]
[332718158,1721473923368,-500.0,0.00034246,14]
[332718159,1721473923383,-500.0,0.00034246,14]
[332718160,1721473923398,-500.0,0.00034246,14]
[332718161,1721473923412,-530.46,0.00034246,14]
[332718162,1721473923428,-500.0,0.00034246,14]
[332718163,1721473923442,-865.41,0.00034246,14]
[332718164,1721473923456,-1109.5,0.00034246,14]
[332718165,1721473923473,-690.07,0.00034246,14]
[332718166,1721473923488,-2619.18,0.00034246,14]
[332718167,1721473923504,-766.77,0.00034246,14]
[332718168,1721473923518,-500.0,0.00034246,14]
[332718169,1721473923540,-500.0,0.00034246,14]
[332718170,1721473923555,-500.0,0.00034246,14]
[332718171,1721473923570,-500.0,0.00034246,14]
[332718172,1721473923585,-1607.23,0.00034246,14]
[332718173,1721473923600,-1931.91,0.00034246,14]
[332718174,1721473923614,-500.0,0.00034246,14]
[332718175,1721473923630,-500.0,0.00034246,14]
[332718176,1721473923645,-500.0,0.00034246,14]